Cogmind - Beta 16 @@@ ROGUE MODE // 2025.12.10 @ 22:41:43 Player: Akamichi1342 Result: Destroyed by H-61 Shepherd with Heavy Assault Cannon Performance ------------- Evolutions (2) 1000 Regions Visited (6) 1200 Robots Destroyed (126) 630 Value Destroyed (3770) 3770 Prototype IDs (5) 100 Alien Tech Used (0) 0 Bonus (831) 831 TOTAL SCORE: 7531 Bonus ------- High Alert Combat Kills 131 Entered Garrisons 200 Used RIF Installer 500 Cogmind --------- Core Integrity 0/550 Matter 47/300 Energy 138/140 System Corruption 5% Temperature Cool (4) Movement Flying (34) Location -8/Materials Parts ------- > --- POWER (1) -------- Light Deuterium Engine > --- PROPULSION (3) --- Improved Flight Unit Improved VTOL Module > --- UTILITY (5) ------ Advanced Weight Redist. System Hardened Light Armor Plating Hacking Suite Hacking Suite Relay Coupler [NC] (27) > --- WEAPON (2) ------- Improved Datajack > --- INVENTORY (5) ---- Improved Heat Sink System Shield Improved Grenade Launcher Heavy Rocket Launcher Peak State ------------ > --- POWER ------------ Light Nuclear Core > --- PROPULSION ------- Armored Treads Armored Treads Armored Treads > --- UTILITY ---------- High-capacity Storage Unit Light Armor Plating Hardened Light Armor Plating Hacking Suite Hacking Suite > --- WEAPON ----------- Improved Assault Rifle Improved Assault Rifle > --- INVENTORY -------- Light Treads Improved Treads Armored Treads Improved Flight Unit Improved Flight Unit Improved Flight Unit Improved Flight Unit Improved Flight Unit Improved Heat Sink Signal Interpreter Light Armor Plating Hardened Light Armor Plating Hacking Suite Hacking Suite Assault Cannon Improved Grenade Launcher Improved Grenade Launcher Improved Grenade Launcher Improved Grenade Launcher Datajack [Rating: 33] Favorites ----------- Power Improved Ion Engine Engine Improved Ion Engine Power Core Light Nuclear Core Propulsion Armored Treads Treads Armored Treads Wheel Compact Wheel Flight Unit Improved Flight Unit Utility Hacking Suite Device Cryofiber Web Storage High-capacity Storage Unit Processor Transport Network Coupler Hackware Hacking Suite Protection Hardened Light Armor Plating Weapon Improved Assault Rifle Energy Gun Improved Medium Laser Energy Cannon Beam Cannon Ballistic Gun Improved Assault Rifle Ballistic Cannon Assault Cannon Launcher Improved Grenade Launcher Special Melee Weapon Improved Datajack Build | -11 -10 -10 -9 -8 -8 -8 ------- Run | Yrd Mat Min Mat Mat Gar Mat Slots Evolved 4 | . . . 2 2 . . Power . | . . . . . . . Propulsion 1 | . . . 1 . . . Utility 3 | . . . 1 2 . . Weapon . | . . . . . . . Parts Attached 81 | 6 12 . 32 17 10 4 Power 6 | 1 2 . . 2 . 1 Engine 3 | 1 1 . . . . 1 Core 3 | . 1 . . 2 . . Reactor . | . . . . . . . Propulsion 24 | 2 . . 13 5 4 . Treads 14 | . . . 9 3 2 . Leg . | . . . . . . . Wheel 5 | 2 . . 3 . . . Hover . | . . . . . . . Flight 5 | . . . 1 2 2 . Utility 27 | 1 5 . 9 6 4 2 Device 3 | . 1 . . . 1 1 Storage 4 | 1 2 . 1 . . . Processor 1 | . . . 1 . . . Hackware 5 | . . . . 3 1 1 Protection 14 | . 2 . 7 3 2 . Artifact . | . . . . . . . Weapon 24 | 2 5 . 10 4 2 1 Energy Gun 7 | 1 2 . 4 . . . Energy Cannon 2 | . 2 . . . . . Ballistic Gun 4 | 1 . . 3 . . . Ballistic Cannon 1 | . . . . 1 . . Launcher 9 | . 1 . 3 3 2 . Special Weapon . | . . . . . . . Impact Weapon . | . . . . . . . Slashing Weapon . | . . . . . . . Piercing Weapon . | . . . . . . . Special Melee Weapon 1 | . . . . . . 1 Unidentified Prototypes 5 | . . . 3 2 . . Parts Lost 22 | . 1 . 9 2 9 1 Power 1 | . . . 1 . . . Propulsion 7 | . . . 3 . 3 1 Utility 8 | . 1 . 1 2 4 . Weapon 6 | . . . 4 . 2 . Highest Loss Streak 5 | . 1 . 5 2 3 1 To Critical Strikes . | . . . . . . . Average Backups 15 | . 10 14 15 19 14 4 Power . | . . . . . . . Propulsion 3 | . 1 2 2 6 4 . Utility 7 | . 6 8 9 7 6 1 Weapon 3 | . 2 4 3 5 3 2 Tool/Special . | . . . . . . . Unused Backups 16 | . . . 1 6 6 3 Power . | . . . . . . . Propulsion 4 | . . . . 1 3 . Utility 7 | . . . 1 1 3 2 Weapon 4 | . . . . 3 . 1 Tool/Special 1 | . . . . 1 . . Average Slot Usage (%) 86 | . 98 100 80 90 73 76 Engine 3 | . 11 14 1 . . 4 Core 1 | . 2 . . 2 . . Treads 15 | . . . 16 26 18 . Wheel 9 | . 28 28 10 . . . Flight 1 | . . . . . 5 26 Storage 10 | . 14 14 11 9 6 . Hackware 9 | . . . . 18 22 22 Protection 14 | . 11 14 18 15 8 9 Energy Gun 6 | . 10 14 14 . . . Energy Cannon 2 | . 15 . . . . . Ballistic Gun 6 | . . . 6 13 . . Ballistic Cannon 1 | . . . . 2 5 . Launcher 2 | . 1 14 . 1 6 . Peak Build Rating 33 | 6 13 12 25 33 29 31 Average Rating 20 | 5 9 12 16 29 22 25 On Entrance 15 | . 6 12 12 25 29 22 Avg Prop Armor Cover (%) 5 | . . . 7 . 4 5 Naked Turns . | . . . . . . . Heaviest Build 62 | 12 37 37 60 62 56 11 Greatest Support 63 | 32 38 32 60 63 63 24 Greatest Overweight (x) 18 | . 1 1 3 18 3 1 Average Overweight (x) . | . . 1 . . . . Largest Inventory Capacity 20 | 8 15 15 20 20 20 5 Average Capacity 16 | 7 12 15 16 20 15 5 Most Carried 20 | . 15 14 20 20 20 5 Average Carried 15 | . 10 14 15 19 14 4 Final Capacity 20 | 8 15 15 20 20 5 5 Final Carried 20 | . 14 14 20 20 5 4 Class Distribution -------------------- 57% | Mutant 41% | Hacker-Mutant Dominant Class ---------------- Mutant | -10/Materials Mutant | -10/Mines Mutant | -9/Materials Hacker-Mutant | -8/Materials Hacker-Mutant | -8/Garrison Hacker-Sprinter | -8/Materials Resources | -11 -10 -10 -9 -8 -8 -8 ----------- Run | Yrd Mat Min Mat Mat Gar Mat Matter Collected 2164 | 245 149 42 670 820 238 . Remotely . | . . . . . . . Salvage Created 4121 | 71 660 26 1643 1335 386 . Parts 225 | . 39 5 80 81 20 . Haulers Intercepted 12 | . 2 . 5 5 . . Recyclers Shooed 3 | . 1 . 1 1 . . Parts Field Recycled . | . . . . . . . Retrieved Matter . | . . . . . . . Parts Self-Destructed . | . . . . . . . Prevented . | . . . . . . . Parts Restored . | . . . . . . . Kills | -11 -10 -10 -9 -8 -8 -8 ------- Run | Yrd Mat Min Mat Mat Gar Mat Combat Hostiles Destroyed 88 | . 12 3 26 28 19 . Guns 33 | . . . 16 17 . . Cannons 16 | . 12 . . 4 . . AOE 36 | . . 3 7 7 19 . Classes Destroyed 12 | 1 5 . 4 2 . . Worker 5 | . 1 . 2 2 . . Builder 4 | . . . 4 . . . Hauler 12 | . 2 . 5 5 . . Recycler 8 | 1 2 . 4 1 . . Operator 7 | . 2 . 3 2 . . Watcher 2 | . . . . 2 . . Swarmer 21 | . 6 3 . 6 6 . Grunt 45 | . 6 . 16 13 10 . Brawler 3 | . . . 1 . 2 . Duelist 2 | . . . 1 1 . . Sentry 16 | . . . 8 7 1 . Hunter 1 | . . . . 1 . . Best Kill Streak 8 | 1 3 3 8 4 6 . Combat Bots Only 7 | . 3 3 7 3 6 . Max Kills in Single Turn 3 | 1 1 3 3 3 3 . Gunslinging . | . . . . . . . Exploded 3 | . . 3 2 2 3 . Melee . | . . . . . . . Uniques/NPCs Destroyed . | . . . . . . . Combat | -11 -10 -10 -9 -8 -8 -8 -------- Run | Yrd Mat Min Mat Mat Gar Mat Hostile Shots Fired 410 | . 36 . 119 166 84 5 Missed 117 | . 8 . 31 45 31 2 Hits 293 | . 28 . 88 121 53 3 Melee 13 | . . . 2 9 2 . Projectile 280 | . 28 . 86 112 51 3 Critical Strikes 10 | . 1 . 3 4 2 . Damage Taken 4937 | . 392 3 1288 1971 1201 82 Core 832 | . 43 . 193 193 354 49 Absorbed by Shields 3 | . . . . . 3 . Regen/Repaired (Parts) 144 | . . . 144 . . . Core Remaining (%) 77 | 100 . 82 51 . . . Volleys Fired 286 | 7 43 1 109 96 30 . Largest 2 | 2 2 1 2 2 2 . Hottest 120 | 60 120 33 112 60 73 . Shots Fired 498 | 14 71 1 195 184 33 . Gun 358 | 14 4 . 182 158 . . Cannon 92 | . 66 . . 19 7 . Launcher 48 | . 1 1 13 7 26 . Special . | . . . . . . . Kinetic 205 | 7 . . 14 177 7 . Thermal 245 | 7 70 . 168 . . . Explosive 48 | . 1 1 13 7 26 . Electromagnetic . | . . . . . . . Robot Hit Streak 33 | 6 11 . 10 33 17 . Robot Miss Streak 9 | 1 4 . 5 9 1 . Penetration Max . | . . . . . . . Secondary Targets 2 | . . . 1 1 . . Max Gunslinging Chain 1 | . . . 1 1 . . Shots Hit Robots 352 | 11 41 . 132 146 20 2 Core Hits 181 | 2 22 3 64 61 29 . Critical Kills . | . . . . . . . Critical Parts Destroyed 1 | . . . 1 . . . Critical Strikes 19 | . . . 18 . 1 . Burn 17 | . . . 17 . . . Destroy 1 | . . . 1 . . . Blast 1 | . . . . . 1 . Melee Attacks 2 | . . . . . . 2 Impact . | . . . . . . . Slashing . | . . . . . . . Piercing . | . . . . . . . Sneak Attacks 2 | . . . . . . 2 Combat Hostiles . | . . . . . . . Follow-up Attacks . | . . . . . . . Damage Inflicted 9926 | 104 817 111 3256 3303 2335 . Guns 4215 | 104 43 . 2149 1919 . . Cannons 1225 | . 677 . . 425 123 . Explosions 4344 | . 92 105 1105 898 2144 . Melee . | . . . . . . . Ramming 142 | . 5 6 2 61 68 . Kinetic 2603 | 39 . . 97 2344 123 . Thermal 2837 | 65 720 . 2052 . . . Explosive 4344 | . 92 105 1105 898 2144 . Electromagnetic . | . . . . . . . Impact . | . . . . . . . Slashing . | . . . . . . . Piercing . | . . . . . . . Highest Corruption 6 | . . . 6 2 5 5 Average Corruption 3 | . . . 5 2 3 5 Corruption Purged . | . . . . . . . Corruption Blocked . | . . . . . . . Effects 83 | . . . 39 20 21 3 Message Errors 21 | . . . 9 6 5 1 Matter Fused 20 | . . . 12 4 4 . Heat Flow Errors 10 | . . . 5 1 4 . Energy Discharges 12 | . . . 4 4 4 . Parts Rejected 1 | . . . 1 . . . Parts Fused 1 | . . . 1 . . . Data Loss (minor) 9 | . . . 2 3 2 2 Data Loss (major) 4 | . . . 3 . 1 . Misfires 1 | . . . 1 . . . Alerts 2 | . . . 1 1 . . Weapon Failures 2 | . . . . 1 1 . Overload Shots . | . . . . . . . Overflow Damage 176 | . 16 . 11 51 98 . Projectiles 16 | . 16 . . . . . Explosions 160 | . . . 11 51 98 . Melee . | . . . . . . . Knockbacks 4 | . . . . 4 . . Impact 1 | . . . . 1 . . Kinetic 3 | . . . . 3 . . Secondary . | . . . . . . . Self-Inflicted Damage 491 | . 39 3 23 . 426 . Shots 13 | . 1 . 1 . 11 . Rammed 41 | . 1 1 2 11 26 . Targets Rammed 44 | . 1 1 2 14 26 . Kicked . | . . . . . . . Crushed 3 | . . . . 3 . . Highest Temperature 480 | 40 357 . 480 275 204 . Average Temperature 115 | 18 102 . 133 77 65 . Received Heat Transfer 1617 | . 66 . 570 576 396 9 Effects 7 | . 1 . 6 . . . Energy Bleed 2 | . 1 . 1 . . . Damage (minor) 2 | . . . 2 . . . Damage (major) 3 | . . . 3 . . . Siege Activations . | . . . . . . . Martial Activations . | . . . . . . . Shielding Activations . | . . . . . . . Robots Disrupted . | . . . . . . . Combat Hostiles . | . . . . . . . Robots Corrupted . | . . . . . . . Combat Hostiles . | . . . . . . . Parts Fried . | . . . . . . . Impact Corruptions . | . . . . . . . Robots Melted 3 | . . . 3 . . . Combat Hostiles 3 | . . . 3 . . . Parts Melted 17 | 1 3 . 13 . . . Heat Transferred 7476 | 150 1554 . 5772 . . . Parts Sabotaged . | . . . . . . . Parts Stolen . | . . . . . . . Parts Stripped . | . . . . . . . Power Chain Reactions . | . . . . . . . Alert | -11 -10 -10 -9 -8 -8 -8 ------- Run | Yrd Mat Min Mat Mat Gar Mat Maximum Alert Level 3 | . . . 1 2 3 2 Low Security (%) 42 | 100 100 100 18 45 . . Level 1 48 | . . . 81 53 38 67 Level 2 4 | . . . . 1 25 32 Level 3 4 | . . . . . 35 . Level 4 . | . . . . . . . Level 5 . | . . . . . . . High Security . | . . . . . . . Max Security . | . . . . . . . Peak Influence 843 | 5 196 79 324 405 843 410 Initial 410 | . . 9 11 113 215 410 Average 233 | . 66 29 242 207 549 383 Influence Increases 3174 | 5 397 79 952 1011 718 12 Destroy 0b10 Robot/C 1760 | . 240 60 520 560 380 . Destroy 0b10 Robot/NC 185 | 5 35 . 85 60 . . Destroy Leader 418 | . 54 10 170 154 30 . Successful Hack 90 | . 31 . 26 3 18 12 Disable Machine 75 | . 15 . 15 30 15 . Anti-Garrison Action 100 | . . . . . 100 . Destroy Structure 291 | . 7 9 76 69 130 . Lose Combat Pursuer 255 | . 15 . 60 135 45 . Influence Decreases 2822 | 5 372 75 713 947 207 503 Entered New Map 739 | . . 16 18 155 117 433 Time Decay 1713 | 5 362 59 605 622 . 60 Lost Part 220 | . 10 . 90 20 90 10 Purge Threat 150 | . . . . 150 . . Squads Dispatched 11 | . 2 . 4 4 . 1 Investigation 1 | . . . 1 . . . Extermination . | . . . . . . . Reinforcement 8 | . 2 . 3 2 . 1 Assault . | . . . . . . . Garrison 2 | . . . . 2 . . Intercept . | . . . . . . . Searches Triggered . | . . . . . . . Construction Impeded 1 | . . . 1 . . . Haulers Reinforced . | . . . . . . . Active Scanning Responses . | . . . . . . . Cargo Convoy Interrupts . | . . . . . . . Stealth | -11 -10 -10 -9 -8 -8 -8 --------- Run | Yrd Mat Min Mat Mat Gar Mat Distress Signals 7 | . 1 . 4 2 . . Communications Jammed . | . . . . . . . Distress Signals . | . . . . . . . Times Spotted 146 | . 24 9 42 45 20 6 Peak Tracking Total 10 | . 4 10 7 6 4 5 Tactical Retreats 14 | . 1 . 4 7 2 . Traps | -11 -10 -10 -9 -8 -8 -8 ------- Run | Yrd Mat Min Mat Mat Gar Mat Traps Triggered 10 | . 2 . 4 3 1 . Indirectly . | . . . . . . . Trap Hack Attempts . | . . . . . . . Triggered . | . . . . . . . Disarmed . | . . . . . . . Reprogrammed . | . . . . . . . Reused . | . . . . . . . Traps Extracted . | . . . . . . . Installed . | . . . . . . . Triggered . | . . . . . . . Machines | -11 -10 -10 -9 -8 -8 -8 ---------- Run | Yrd Mat Min Mat Mat Gar Mat Machines Disabled 8 | . 1 . 2 2 3 . Max in Single Turn 1 | . 1 . 1 1 1 . Garrison Relay 2 | . . . . . 2 . Machines Repaired . | . . . . . . . Machines Dismantled . | . . . . . . . Machines Sabotaged . | . . . . . . . Overloaded Fab Kills . | . . . . . . . Hacking | -11 -10 -10 -9 -8 -8 -8 --------- Run | Yrd Mat Min Mat Mat Gar Mat Machines Accessed 25 | . 5 . 7 8 2 3 Terminals 20 | . 5 . 5 6 2 2 Fabricators . | . . . . . . . Repair Stations 3 | . . . 2 . . 1 Recycling Units . | . . . . . . . Scanalyzers 1 | . . . . 1 . . Garrison Access 1 | . . . . 1 . . Total Hacks 61 | . 10 . 22 18 3 8 Successful 30 | . 6 . 7 10 2 5 Failed 28 | . 3 . 14 7 1 3 Catastrophic 4 | . 1 . 1 2 . . Database Lockouts 3 | . 1 . 1 1 . . Manual 38 | . 8 . 14 15 . 1 Terminals 47 | . 10 . 13 15 3 6 Fabricators . | . . . . . . . Repair Stations 11 | . . . 9 . . 2 Recycling Units . | . . . . . . . Scanalyzers 2 | . . . . 2 . . Garrison Access 1 | . . . . 1 . . Terminal Hacks 13 | . 4 . 1 4 2 2 Robot Analysis 3 | . 2 . 1 . . . Machine Index 1 | . . . . . . 1 Terminal Index 2 | . 1 . . 1 . . Scanalyzer Index 1 | . . . . 1 . . Garrison Index 1 | . . . . 1 . . Unreport Threat 1 | . . . . 1 . . Registered Components 1 | . . . . . . 1 Registered Prototypes 1 | . 1 . . . . . Patrol Navigation 1 | . . . . . 1 . Security Stations 1 | . . . . . 1 . Fabricator Hacks . | . . . . . . . Repair Station Hacks 5 | . . . 3 . . 2 Scan Component 3 | . . . 2 . . 1 Repair 1 | . . . 1 . . . Refit 1 | . . . . . . 1 Recycling Unit Hacks . | . . . . . . . Scanalyzer 1 | . . . . 1 . . Retrieve Study 1 | . . . . 1 . . Garrison Access Hacks 1 | . . . . 1 . . Unlock Access 1 | . . . . 1 . . Unauthorized Hacks 10 | . 2 . 3 4 . 1 Terminals 10 | . 2 . 3 4 . 1 Assimilate 3 | . 1 . 1 . . 1 Botnet 4 | . . . 1 3 . . Operators 3 | . 1 . 1 1 . . Fabricators . | . . . . . . . Repair Stations . | . . . . . . . Recycling Units . | . . . . . . . Scanalyzers . | . . . . . . . Garrison Access . | . . . . . . . Data Cores Recovered . | . . . . . . . Used . | . . . . . . . Hacking Detections 21 | . 3 . 7 7 1 3 Full Trace Events 1 | . . . 1 . . . Feedback Events . | . . . . . . . Feedback Blocked . | . . . . . . . Robot Schematics Acquired . | . . . . . . . Robots Built . | . . . . . . . Authchips . | . . . . . . . Time . | . . . . . . . Total Robot Build Rating . | . . . . . . . Part Schematics Acquired . | . . . . . . . Parts Built . | . . . . . . . Authchips . | . . . . . . . Time . | . . . . . . . Total Part Build Rating . | . . . . . . . Part Studies Acquired 1 | . . . . 1 . . Parts Repaired 1 | . . . 1 . . . Time 53 | . . . 53 . . . Parts Recycled . | . . . . . . . Recycled Matter . | . . . . . . . Retrieved Matter . | . . . . . . . Retrieved Components . | . . . . . . . Parts Scanalyzed . | . . . . . . . Part Schematics Acquired . | . . . . . . . Parts Damaged . | . . . . . . . Bothacking | -11 -10 -10 -9 -8 -8 -8 ------------ Run | Yrd Mat Min Mat Mat Gar Mat Used RIF Installer 1 | . . . . . 1 . Robots Hacked . | . . . . . . . Non-combat . | . . . . . . . Combat . | . . . . . . . Robot Hacks Applied . | . . . . . . . Relay Couplers Released 7 | . . . . . 7 . Machine Destruction 7 | . . . . . 7 . Attached 1 | . . . . . . 1 Fabnet Peak Effective % . | . . . . . . . Robots Rewired . | . . . . . . . Allies Hacked . | . . . . . . . Hacks Repelled . | . . . . . . . Allies | -11 -10 -10 -9 -8 -8 -8 -------- Run | Yrd Mat Min Mat Mat Gar Mat Total Allies 2 | . 1 . . . . 1 Largest Group 1 | . 1 1 . . . 1 Highest-Rated Group 10 | . 10 10 . . . 10 Highest-Rated Ally 10 | . 10 10 . . . 10 Total Orders 2 | . 2 . . . . . STAY 1 | . 1 . . . . . FOLLOW 1 | . 1 . . . . . Ally Attacks . | . . . . . . . Total Damage . | . . . . . . . Kills . | . . . . . . . Allies Corrupted . | . . . . . . . Allies Melted . | . . . . . . . Intel | -11 -10 -10 -9 -8 -8 -8 ------- Run | Yrd Mat Min Mat Mat Gar Mat Active Infowar (turns) 75 | . . . 75 . . . T.N.C. 75 | . . . 75 . . . Robot Analysis Total 3 | . 2 . 1 . . . Derelict Logs Recovered 1 | . . 1 . . . . Drone Launches . | . . . . . . . Drone Recoveries . | . . . . . . . Exploration | -11 -10 -10 -9 -8 -8 -8 ------------- Run | Yrd Mat Min Mat Mat Gar Mat Turns Passed 6844 | 76 1291 194 2124 2117 919 123 Spaces Moved 3944 | 49 959 163 1036 967 561 209 Core 44 | 4 . . . 1 39 . Treads 1810 | . . . 520 966 324 . Legs . | . . . . . . . Wheels 1683 | 45 959 163 516 . . . Hover . | . . . . . . . Flight 407 | . . . . . 198 209 Fastest Speed 32 | 50 100 115 100 163 32 32 Average Speed 133 | 95 108 115 145 171 131 42 Slowest Speed 950 | 100 115 115 250 950 320 105 Overloaded Moves . | . . . . . . . Propulsion Burnouts . | . . . . . . . Robots Hopped 1 | . . . . . . 1 Potential Cave-ins . | . . . . . . . Cave-ins Triggered . | . . . . . . . Exploration Rate (%) 49 | 4 97 45 66 64 52 16 Regions Visited 6 Branch Regions 1 Pre-discovered Areas . | . . . . . . . Known Exits Taken 1 | . . . . 1 . . Unknown Exits Taken 4 | 1 1 1 1 . . . Scrap Searched 1 | . . 1 . . . . Spaces Dug 7 | . 7 . . . . . Terrain Destroyed 352 | . 7 14 87 84 160 . Melee . | . . . . . . . Projectile 2 | . . . . 2 . . AOE 350 | . 7 14 87 82 160 . Terrain Rammed . | . . . . . . . Walls Destroyed . | . . . . . . . Machines Disabled . | . . . . . . . Actions | -11 -10 -10 -9 -8 -8 -8 --------- Run | Yrd Mat Min Mat Mat Gar Mat Total 5006 | 62 1140 168 1457 1232 704 243 Wait 513 | 1 95 4 224 101 64 24 Move 3938 | 48 958 163 1035 967 560 207 Hop 1 | . . . . . . 1 Pick Up 55 | . 19 . 21 11 3 1 Fast Attach 48 | 6 6 . 15 11 8 2 Attach 20 | . 1 . 9 4 4 2 Detach 1 | . . . . 1 . . Swap 36 | . 8 . 19 7 2 . Drop 63 | . 9 . 23 20 7 4 Fire 286 | 7 43 1 109 96 30 . Melee 2 | . . . . . . 2 Ram 27 | . 1 . . . 26 . Kick . | . . . . . . . Crush 16 | . . . 2 14 . . Escape Stasis . | . . . . . . . Rewire . | . . . . . . . Trap . | . . . . . . . Miscellaneous . | . . . . . . . Route ------- -11/Scrapyard -10/Materials (discovered 5 exits: *Mat x3 / [*Min x2]) -10/Mines -9/Materials (discovered 4 exits: *Mat x2 / [*Min] / [*Sto]) -8/Materials (discovered 2 exits: [*Fac] / Gar) -8/Garrison -8/Materials History --------- Turn | Location | Event 18 | -11/Scrapyard | Discovered new exit (range 16) 77 | -11/Scrapyard | Entered Materials 109 | -10/Materials | Discovered new exit (range 15) 307 | -10/Materials | Build established: Mutant 356 | -10/Materials | Discovered new exit (range 10) 519 | -10/Materials | Discovered new exit (range 15) 976 | -10/Materials | Discovered new exit (range 16) 1122 | -10/Materials | Discovered new exit (range 9) 1330 | -10/Materials | Central database locked down 1368 | -10/Materials | Entered Mines 1368 | -10/Mines | Accompanied by 1 ally 1419 | -10/Mines | Received a Rocket Launcher from a helpful Derelict 1446 | -10/Mines | Found a damaged Exp. Sensor Array with a note attached 1459 | -10/Mines | Learned Materials terminal intel 1501 | -10/Mines | Met a Derelict bent on vengeance 1552 | -10/Mines | Assembled infested the area 1552 | -10/Mines | Discovered new exit (range 9) 1562 | -10/Mines | Entered Materials 1562 | -9/Materials | Accompanied by 1 ally 1562 | -9/Materials | Evolved 2 slots: Propulsion x1, Utility x1 1563 | -9/Materials | Loaded intel: 12 terminal locations 1820 | -9/Materials | Discovered new exit (range 15) 1839 | -9/Materials | Discovered new exit (range 10) 1983 | -9/Materials | Lost 5 parts (1p2n2w) 1985 | -9/Materials | Destroyed 7 combat bots 2157 | -9/Materials | Central database locked down 2422 | -9/Materials | Discovered new exit (range 10) 2902 | -9/Materials | Discovered new exit (range 16) 3171 | -9/Materials | Repaired Broken Arm. Treads 3686 | -9/Materials | Entered another Materials area 3686 | -8/Materials | Evolved 2 slots: Utility x2 4198 | -8/Materials | Build established: Hacker-Mutant 4453 | -8/Materials | Discovered new exit (range 3) 5177 | -8/Materials | Central database locked down 5671 | -8/Materials | Garrison activated, responded to threat 5803 | -8/Materials | Identified exit to Garrison 5803 | -8/Materials | Entered Garrison 5859 | -8/Garrison | Triggered checkpoint 5867 | -8/Garrison | Garrison Relay disabled 5877 | -8/Garrison | Core integrity fell below 50% 5993 | -8/Garrison | Triggered checkpoint 6003 | -8/Garrison | Triggered checkpoint 6036 | -8/Garrison | Installed Relay Interface Framework 6118 | -8/Garrison | Discovered new exit (range 12) 6159 | -8/Garrison | Learned Materials security intel 6167 | -8/Garrison | Triggered checkpoint 6194 | -8/Garrison | Garrison Relay disabled 6293 | -8/Garrison | Triggered checkpoint 6333 | -8/Garrison | Triggered checkpoint 6403 | -8/Garrison | Triggered checkpoint 6439 | -8/Garrison | Core integrity fell below 20% 6479 | -8/Garrison | Spotted B-75 Beast 6481 | -8/Garrison | Spotted B-75 Beast 6556 | -8/Garrison | Lost 3 parts (2u1w) 6722 | -8/Garrison | Entered Materials 6845 | -8/Materials | Destroyed by H-61 Shepherd with Heavy Assault Cannon Last Messages --------------- No applicable chute records found in memory. 06831_ O-16 Technician: "IFF HANDSHAKE FAILED. SECURING TERMINAL." 06838_ Connecting with Terminal... >>Trojan(Assimilate) Trojan loaded successfully. Testing... System interface override in place. >>Index(Machines) Found 14 machines: 9 Terminals 1 Repair Station 1 Recycling Unit 2 Scanalyzers 1 Garrison Access Downloaded coordinate data. 06839_ System corrupted: Component data lost. 06839_ O-16 Technician accesses terminal... 06839_ O-16 Technician IFF database reprogrammed. Map ----- +----------------------------------------------------+ | ??????????????????????????????????????? | | ??????????????????????????????????????? | | ??????????????????????????????????????? | | ??????????????????????????????????????? | | ??????????????????????????????????????? | | ??????????????????????????????????????? | | ??????????????????????????????????????? | | ?????????????????????????????????????## | | ?????????????????????????????????????# | | ?????????????????????????????????????# | | ?????????????????????????????????????#[ | | ????????????##########????????######## | | ????????????# T #????????# # | | ????????????# """ #????????#* # | | ????????????# """ #????????# ] #+ | | ????????????# """ #????????#!] ] + | | ????????????# #????????#!] # | | ????????????# """ #????????# # | | ????????????# """ #???############# | | ????????????# """ #???#= * // ####+ | | ????????????# #???# /| ## | | ????????????#####+######## % /| ##"" | | ????????????# # ##"T! | | ????????????# % / ##"" | | ????????????# ##+######## """ ## | | ????????????# @## ?????# """ ## | | ????????????# ## / ! ???#! """ ## | | ????????????# ## !?# ! # | | ????????????# ## """ ##+#########! | | ????????????# ## """ ## ###########+ | | ????????????# ## """ ## | | ????????????# ## *## | | ???????????? ??###??#### | | ???????????? | | ???????????? H ################## | | ???????????? ???????????????????????? | | ????????????###???????????????????????? | | ??????????????????????????????????????? | | | | | | | | | | | | | | | | | | | | | | | | | +----------------------------------------------------+ Best States ------------- Heat Dissipation 31 Energy Generation 14 Energy Capacity 265 Matter Stores 300 Matter Capacity 300 Sight Range 16 Terrain Scan Density 10 Additional Mass Support 9 Base Temperature (-) 100 Armor Coverage 450 Evasion (%) 63 Recoil Reduction 3 Offensive Hacking 30 Relay Coupler Types 1 Relay Coupler Value 27 Item Schematics ----------------- None Robot Schematics ------------------ None Fabricated ------------ Nothing Repaired ---------- Arm. Treads | 52% | -9/Materials | Broken Studied --------- Imp. Grenade Launcher | -8/Materials | Hacked Alien Tech Used ----------------- None Achievements -------------- None Challenges ------------ None Game ------ Seed CombatMultireflexScreen Manual? 0 Play Time 00:44:45 Cumulative 52.1 hours Start 2025.12.10 @ 21:59:27 End 2025.12.10 @ 22:41:43 Sessions 1 Manual Loads 0 Difficulty Rogue Special Mode None Game No. 64 Rogue 64 Adventurer 0 Explorer 0 Win Type - Total 1 Types 1/0/0/0/0/0/0/0/0/0 Lore% 42 Gallery% 35 Achievement% 33 Wizard Run 0 Options --------- Layout 1 ASCII 0 Keyboard 0 Movement Numpad Keybinds 0 Fullscreen 1 Font 24/Smallcaps Map View 50x35 Zoom Use 0% Tactical HUD 1 Map Filters NONE Filters NONE Steam 0 RUN: a84630f5-4f20-4894-bb57-7844e37e6d6c